lending/lending_fUSD_20240710
["ID","MTS","AMOUNT","RATE_DAILY","PERIOD"]
[331654593,1720606247814,-500.0,0.00013698,2]
[331654594,1720606247823,-500.0,0.00013698,2]
[331654595,1720606247833,-711.1,0.00013698,2]
[331654596,1720606247842,-500.0,0.00013698,2]
[331654597,1720606247851,-500.0,0.00013698,2]
[331654598,1720606247860,-500.0,0.00013698,2]
[331654599,1720606247869,-550.54,0.00013698,2]
[331654600,1720606247879,-1029.96,0.00013698,2]
[331654601,1720606247890,-500.0,0.00013698,2]
[331654602,1720606247899,-500.0,0.00013698,2]
[331654603,1720606247909,-500.0,0.00013698,2]
[331654604,1720606247919,-185.57220098,0.00013698,2]
[331654605,1720606247929,-500.0,0.00013698,2]
[331654606,1720606247939,-623.1,0.00013698,2]
[331654607,1720606247948,-667.83,0.00013698,2]
[331654608,1720606247958,-1080.23,0.00013698,2]
[331654609,1720606247968,-606.11,0.00013698,2]
[331654610,1720606247978,-500.0,0.00013698,2]
[331654611,1720606247988,-500.0,0.00013698,2]
[331654612,1720606248000,-500.0,0.00013698,2]
[331654613,1720606248010,-500.0,0.00013698,2]
[331654614,1720606248019,-833.99,0.00013698,2]
[331654615,1720606248028,-824.98,0.00013698,2]
[331654616,1720606248037,-500.0,0.00013698,2]
[331654617,1720606248047,-500.0,0.00013698,2]
[331654618,1720606248056,-500.0,0.00013698,2]
[331654619,1720606248066,-593.4,0.00013698,2]
[331654620,1720606248076,-567.78,0.00013698,2]
[331654621,1720606248086,-984.44,0.00013698,2]
[331654622,1720606248096,-622.86,0.00013698,2]
[331654623,1720606248106,-500.0,0.00013698,2]
[331654624,1720606248115,-500.0,0.00013698,2]
[331654625,1720606248124,-500.0,0.00013698,2]
[331654626,1720606248134,-762.37,0.00013698,2]
[331654627,1720606248143,-6868.76,0.00013698,2]
[331654628,1720606248152,-500.0,0.00013698,2]
[331654629,1720606248161,-516.41,0.00013698,2]
[331654630,1720606248171,-500.0,0.00013698,2]
[331654631,1720606248180,-500.0,0.00013698,2]
[331654632,1720606248189,-500.0,0.00013698,2]
[331654633,1720606248198,-500.0,0.00013698,2]
[331654634,1720606248207,-500.0,0.00013698,2]
[331654635,1720606248217,-500.0,0.00013698,2]
[331654636,1720606248226,-1224.33,0.00013698,2]
[331654637,1720606248236,-500.0,0.00013698,2]
[331654638,1720606248248,-829.62,0.00013698,2]
[331654639,1720606248257,-698.36,0.00013698,2]
[331654640,1720606248266,-500.0,0.00013698,2]
[331654641,1720606248276,-777.41,0.00013698,2]
[331654642,1720606248285,-536.86,0.00013698,2]
[331654643,1720606248295,-518.1,0.00013698,2]
[331654644,1720606248304,-1246.12,0.00013698,2]
[331654645,1720606248314,-500.0,0.00013698,2]
[331654646,1720606248323,-500.0,0.00013698,2]
[331654647,1720606248333,-500.0,0.00013698,2]
[331654648,1720606248342,-1276.82,0.00013698,2]
[331654649,1720606248351,-500.0,0.00013698,2]
[331654650,1720606248360,-500.0,0.00013698,2]
[331654651,1720606248370,-530.23,0.00013698,2]
[331654652,1720606248379,-500.0,0.00013698,2]
[331654653,1720606248388,-500.0,0.00013698,2]
[331654654,1720606248397,-575.47,0.00013698,2]
[331654655,1720606248407,-500.0,0.00013698,2]
[331654656,1720606248416,-500.0,0.00013698,2]
[331654657,1720606248426,-538.14,0.00013698,2]
[331654658,1720606248436,-500.0,0.00013698,2]
[331654659,1720606248445,-500.0,0.00013698,2]
[331654660,1720606248456,-1177.23,0.00013698,2]
[331654661,1720606248466,-500.0,0.00013698,2]
[331654662,1720606248475,-500.0,0.00013698,2]
[331654663,1720606248484,-500.0,0.00013698,2]
[331654664,1720606248494,-852.74,0.00013698,2]
[331654665,1720606248504,-500.0,0.00013698,2]
[331654666,1720606248513,-500.0,0.00013698,2]
[331654667,1720606248522,-622.15,0.00013698,2]
[331654668,1720606248531,-777.57,0.00013698,2]
[331654669,1720606248541,-500.0,0.00013698,2]
[331654670,1720606248550,-746.7,0.00013698,2]
[331654671,1720606248560,-503.09414396,0.00013698,2]
[331654672,1720606248569,-446.24725413,0.00013698,2]
[331654673,1720606248578,-500.0,0.00013698,2]
[331654674,1720606248587,-500.0,0.00013698,2]
[331654675,1720606248597,-500.0,0.00013698,2]
[331654676,1720606248607,-500.0,0.00013698,2]
[331654677,1720606248617,-720.65,0.00013699,2]
[331654678,1720606248626,-200.0,0.00013699,2]
[331654679,1720606248636,-250.0,0.00013699,2]
[331654680,1720606248646,-2751.0,0.00013699,2]
[331654681,1720606248655,-220.1,0.00013699,3]
[331654682,1720606248664,-1000.0,0.000137,2]
[331654683,1720606248673,-1439.05719035,0.0001372,2]
[331654684,1720606248683,-150.0,0.00013733,2]
[331654685,1720606248692,-12780.12103869,0.00013736,2]
[331654686,1720606248701,-170.698732,0.00013736,2]
[331654687,1720606248710,-208.15400611,0.00013739,2]
[331654688,1720606248720,-643.56,0.00013752,2]
[331654689,1720606248728,-500.0,0.00013752,2]
[331654690,1720606248738,-500.0,0.00013752,2]
[331654691,1720606248748,-500.0,0.00013752,2]
[331654692,1720606248757,-646.03,0.00013752,2]
[331654693,1720606248766,-911.66,0.00013752,2]
[331654694,1720606248775,-500.0,0.00013752,2]
[331654695,1720606248784,-500.0,0.00013752,2]
[331654696,1720606248793,-591.81,0.00013752,2]
[331654697,1720606248803,-611.75,0.00013752,2]
[331654698,1720606248812,-500.0,0.00013752,2]
[331654699,1720606248821,-500.0,0.00013752,2]
[331654700,1720606248832,-960.02,0.00013752,2]
[331654701,1720606248842,-500.0,0.00013753,2]
[331654702,1720606248852,-500.0,0.00013753,2]
[331654703,1720606248862,-871.53,0.00013753,2]
[331654704,1720606248871,-676.57,0.00013753,2]
[331654705,1720606248880,-500.0,0.00013753,2]
[331654706,1720606248891,-500.0,0.00013753,2]
[331654707,1720606248900,-500.0,0.00013753,2]
[331654708,1720606248911,-500.0,0.00013753,2]
[331654709,1720606248920,-500.0,0.00013753,2]
[331654710,1720606248931,-705.21,0.00013753,2]
[331654711,1720606248940,-500.0,0.00013753,2]
[331654712,1720606248949,-500.0,0.00013753,2]
[331654713,1720606248958,-539.9,0.00013753,2]
[331654714,1720606248968,-500.0,0.00013753,2]
[331654715,1720606248977,-500.0,0.00013753,2]
[331654716,1720606248986,-500.0,0.00013753,2]
[331654717,1720606248996,-500.0,0.00013753,2]
[331654718,1720606249005,-650.48,0.00013753,2]
[331654719,1720606249014,-500.0,0.00013753,2]
[331654720,1720606249024,-500.0,0.00013753,2]
[331654721,1720606249033,-500.0,0.00013753,2]
[331654722,1720606249042,-500.0,0.00013753,2]
[331654723,1720606249051,-500.0,0.00013753,2]
[331654724,1720606249060,-500.0,0.00013753,2]
[331654725,1720606249071,-500.0,0.00013753,2]
[331654726,1720606249080,-500.0,0.00013753,2]
[331654727,1720606249089,-500.0,0.00013753,2]
[331654728,1720606249098,-500.0,0.00013753,2]
[331654729,1720606249107,-500.0,0.00013753,2]
[331654730,1720606249116,-667.32,0.00013753,2]
[331654731,1720606249126,-500.0,0.00013753,2]
[331654732,1720606249135,-500.0,0.00013753,2]
[331654733,1720606249144,-500.0,0.00013753,2]
[331654734,1720606249153,-500.0,0.00013753,2]
[331654735,1720606249163,-526.26,0.00013753,2]
[331654736,1720606249172,-500.0,0.00013753,2]
[331654737,1720606249181,-500.0,0.00013753,2]
[331654738,1720606249190,-500.0,0.00013753,2]
[331654739,1720606249200,-564.22,0.00013753,2]
[331654740,1720606249208,-500.0,0.00013753,2]
[331654741,1720606249217,-500.0,0.00013753,2]
[331654742,1720606249227,-500.0,0.00013753,2]
[331654743,1720606249236,-500.0,0.00013753,2]
[331654744,1720606249247,-500.0,0.00013753,2]
[331654745,1720606249256,-500.0,0.00013753,2]
[331654746,1720606249265,-500.0,0.00013753,2]
[331654747,1720606249274,-500.0,0.00013753,2]
[331654748,1720606249284,-500.0,0.00013753,2]
[331654749,1720606249293,-500.0,0.00013753,2]
[331654750,1720606249302,-500.0,0.00013753,2]
[331654751,1720606249311,-500.0,0.00013753,2]
[331654752,1720606249320,-500.0,0.00013753,2]
[331654753,1720606249330,-222.42307317,0.00013753,2]
[331654754,1720606249339,-500.0,0.00013753,2]
[331654755,1720606249348,-500.0,0.00013753,2]
[331654756,1720606249358,-500.0,0.00013753,2]
[331654757,1720606249367,-500.0,0.00013753,2]
[331654758,1720606249376,-500.0,0.00013753,2]
[331654759,1720606249386,-500.0,0.00013753,2]
[331654760,1720606249395,-500.0,0.00013753,2]
[331654761,1720606249404,-592.09,0.00013753,2]
[331654762,1720606249413,-500.0,0.00013753,2]
[331654763,1720606249422,-500.0,0.00013753,2]
[331654764,1720606249432,-500.0,0.00013753,2]
[331654765,1720606249441,-1112.6,0.00013753,2]
[331654766,1720606249452,-727.08,0.00013753,2]
[331654767,1720606249462,-767.68,0.00013753,2]
[331654768,1720606249471,-565.67,0.00013753,2]
[331654769,1720606249481,-500.0,0.00013753,2]
[331654770,1720606249491,-500.0,0.00013753,2]
[331654771,1720606249500,-500.0,0.00013753,2]
[331654772,1720606249509,-500.0,0.00013753,2]
[331654773,1720606249518,-500.0,0.00013753,2]
[331654774,1720606249528,-1133.9,0.00013753,2]
[331654775,1720606249537,-1174.49,0.00013753,2]
[331654776,1720606249546,-1885.56,0.00013753,2]
[331654777,1720606249556,-500.0,0.00013753,2]
[331654778,1720606249565,-651.75,0.00013753,2]
[331654779,1720606249574,-656.11,0.00013753,2]
[331654780,1720606249584,-500.0,0.00013753,2]
[331654781,1720606249594,-500.0,0.00013753,2]
[331654782,1720606249603,-500.0,0.00013753,2]
[331654783,1720606249612,-631.66,0.00013753,2]
[331654784,1720606249622,-500.0,0.00013753,2]
[331654785,1720606249631,-500.0,0.00013753,2]
[331654786,1720606249640,-687.4,0.00013753,2]
[331654787,1720606249651,-500.0,0.00013753,2]
[331654788,1720606249661,-734.84,0.00013753,2]
[331654789,1720606249671,-765.87,0.00013753,2]
[331654790,1720606249679,-500.0,0.00013753,2]
[331654791,1720606249689,-711.46,0.00013753,2]
[331654792,1720606249698,-500.0,0.00013753,2]
[331654793,1720606249707,-901.5,0.00013753,2]
[331654794,1720606249716,-500.0,0.00013753,2]
[331654795,1720606249726,-660.18,0.00013753,2]
[331654796,1720606249736,-500.0,0.00013753,2]
[331654797,1720606249749,-500.0,0.00013753,2]
[331654798,1720606249757,-500.0,0.00013753,2]
[331654799,1720606249767,-500.0,0.00013753,2]
[331654800,1720606249776,-1087.94,0.00013753,2]
[331654801,1720606249784,-559.28,0.00013753,2]
[331654802,1720606249796,-500.0,0.00013753,2]
[331654803,1720606249806,-500.0,0.00013753,2]
[331654804,1720606249815,-500.0,0.00013753,2]
[331654805,1720606249824,-500.0,0.00013753,2]
[331654806,1720606249834,-500.0,0.00013753,2]
[331654807,1720606249843,-500.0,0.00013753,2]
[331654808,1720606249852,-500.0,0.00013753,2]
[331654809,1720606249861,-586.96,0.00013753,2]
[331654810,1720606249871,-500.0,0.00013753,2]
[331654811,1720606249880,-500.0,0.00013753,2]
[331654812,1720606249891,-500.0,0.00013753,2]
[331654813,1720606249900,-532.78,0.00013753,2]
[331654814,1720606249910,-557.67,0.00013753,2]
[331654815,1720606249920,-548.08,0.00013753,2]
[331654816,1720606249929,-1077.12,0.00013753,2]
[331654817,1720606249939,-724.62,0.00013753,2]
[331654818,1720606249948,-500.0,0.00013753,2]
[331654819,1720606249957,-686.76,0.00013753,2]
[331654820,1720606249966,-500.0,0.00013753,2]
[331654821,1720606249976,-500.0,0.00013753,2]
[331654822,1720606249985,-500.0,0.00013753,2]
[331654823,1720606249995,-500.0,0.00013753,2]
[331654824,1720606250004,-500.0,0.00013753,2]
[331654825,1720606250014,-500.0,0.00013753,2]
[331654826,1720606250022,-500.0,0.00013753,2]
[331654827,1720606250031,-500.0,0.00013753,2]
[331654828,1720606250040,-500.0,0.00013753,2]
[331654829,1720606250049,-610.26,0.00013753,2]
[331654830,1720606250059,-500.0,0.00013753,2]
[331654831,1720606250068,-500.0,0.00013753,2]
[331654832,1720606250077,-500.0,0.00013753,2]
[331654833,1720606250086,-500.0,0.00013753,2]
[331654834,1720606250095,-575.07,0.00013753,2]
[331654835,1720606250104,-500.0,0.00013753,2]
[331654836,1720606250113,-500.0,0.00013753,2]
[331654837,1720606250123,-500.0,0.00013753,2]
[331654838,1720606250132,-500.0,0.00013753,2]
[331654839,1720606250142,-653.92,0.00013753,2]
[331654840,1720606250152,-500.0,0.00013753,2]
[331654841,1720606250163,-500.0,0.00013753,2]
[331654842,1720606250172,-500.0,0.00013753,2]
[331654843,1720606250181,-500.0,0.00013753,2]
[331654844,1720606250190,-500.0,0.00013753,2]
[331654845,1720606250198,-500.0,0.00013753,2]
[331654846,1720606250207,-500.0,0.00013753,2]
[331654847,1720606250216,-666.87,0.00013753,2]
[331654848,1720606250226,-614.02,0.00013753,2]
[331654849,1720606250235,-567.39,0.00013753,2]
[331654850,1720606250245,-1627.64,0.00013753,2]
[331654851,1720606250254,-512.45,0.00013753,2]
[331654852,1720606250263,-500.0,0.00013753,2]
[331654853,1720606250272,-500.0,0.00013753,2]
[331654854,1720606250281,-500.0,0.00013753,2]
[331654855,1720606250290,-500.0,0.00013753,2]
[331654856,1720606250299,-500.0,0.00013753,2]
[331654857,1720606250308,-500.0,0.00013753,2]
[331654858,1720606250317,-500.0,0.00013753,2]
[331654859,1720606250326,-853.89,0.00013753,2]
[331654860,1720606250335,-831.72,0.00013753,2]
[331654861,1720606250344,-500.0,0.00013753,2]
[331654862,1720606250354,-500.0,0.00013753,2]
[331654863,1720606250365,-907.41,0.00013753,2]
[331654864,1720606250374,-500.0,0.00013753,2]
[331654865,1720606250383,-500.0,0.00013753,2]
[331654866,1720606250392,-500.0,0.00013753,2]
[331654867,1720606250402,-714.11,0.00013753,2]
[331654868,1720606250410,-1189.58,0.00013753,2]
[331654869,1720606250419,-1105.9,0.00013753,2]
[331654870,1720606250429,-500.0,0.00013753,2]
[331654871,1720606250438,-500.0,0.00013753,2]
[331654872,1720606250447,-749.41,0.00013753,2]
[331654873,1720606250456,-377.28836804,0.00013753,2]
[331654874,1720606250465,-500.0,0.00013753,2]
[331654875,1720606250473,-500.0,0.00013753,2]
[331654876,1720606250482,-560.63,0.00013753,2]
[331654877,1720606250491,-534.92,0.00013753,2]
[331654878,1720606250500,-500.0,0.00013753,2]
[331654879,1720606250510,-1005.01,0.00013753,2]
[331654880,1720606250519,-500.0,0.00013753,2]
[331654881,1720606250528,-500.0,0.00013753,2]
[331654882,1720606250538,-500.0,0.00013753,2]
[331654883,1720606250547,-613.99,0.00013753,2]
[331654884,1720606250556,-500.0,0.00013753,2]
[331654885,1720606250565,-652.95,0.00013753,2]
[331654886,1720606250574,-500.0,0.00013753,2]
[331654887,1720606250583,-394.06367018,0.00013753,2]
[331654888,1720606250593,-549.09,0.00013753,2]
[331654889,1720606250603,-500.0,0.00013753,2]
[331654890,1720606250612,-500.0,0.00013753,2]
[331654891,1720606250622,-500.0,0.00013753,2]
[331654892,1720606250631,-500.0,0.00013753,2]
[331654893,1720606250643,-594.28,0.00013753,2]
[331654894,1720606250653,-925.57,0.00013753,2]
[331654895,1720606250664,-1253.75,0.00013753,2]
[331654896,1720606250673,-500.0,0.00013753,2]
[331654897,1720606250682,-1255.93,0.00013753,2]
[331654898,1720606250692,-500.0,0.00013753,2]
[331654899,1720606250702,-500.0,0.00013753,2]
[331654900,1720606250713,-500.0,0.00013753,2]
[331654901,1720606250722,-500.0,0.00013753,2]
[331654902,1720606250732,-500.0,0.00013753,2]
[331654903,1720606250741,-500.0,0.00013753,2]
[331654904,1720606250752,-1476.23,0.00013753,2]
[331654905,1720606250894,-500.0,0.00013753,2]
[331654906,1720606250908,-500.0,0.00013753,2]
[331654907,1720606250918,-500.0,0.00013753,2]
[331654908,1720606250929,-959.43,0.00013753,2]
[331654909,1720606250940,-500.0,0.00013753,2]
[331654910,1720606250952,-500.0,0.00013753,2]
[331654911,1720606250962,-1020.3,0.00013753,2]
[331654912,1720606250972,-507.69,0.00013753,2]
[331654913,1720606250982,-579.58,0.00013753,2]
[331654914,1720606250992,-500.0,0.00013753,2]
[331654915,1720606251002,-500.0,0.00013753,2]
[331654916,1720606251011,-865.17,0.00013753,2]
[331654917,1720606251020,-500.0,0.00013753,2]
[331654918,1720606251029,-603.22,0.00013753,2]
[331654919,1720606251039,-500.0,0.00013753,2]
[331654920,1720606251051,-732.31,0.00013753,2]
[331654921,1720606251062,-500.0,0.00013753,2]
[331654922,1720606251071,-500.0,0.00013753,2]
[331654923,1720606251080,-907.7,0.00013753,2]
[331654924,1720606251090,-500.0,0.00013753,2]
[331654925,1720606251100,-500.0,0.00013753,2]
[331654926,1720606251109,-500.0,0.00013753,2]
[331654927,1720606251118,-500.0,0.00013753,2]
[331654928,1720606251127,-1082.74,0.00013753,2]
[331654929,1720606251136,-668.97,0.00013753,2]
[331654930,1720606251146,-500.0,0.00013753,2]
[331654931,1720606251155,-500.0,0.00013753,2]
[331654932,1720606251164,-840.01,0.00013753,2]
[331654933,1720606251173,-500.0,0.00013753,2]
[331654934,1720606251183,-500.0,0.00013753,2]
[331654935,1720606251192,-685.39,0.00013753,2]
[331654936,1720606251201,-925.62,0.00013753,2]
[331654937,1720606251211,-700.03,0.00013753,2]
[331654938,1720606251220,-500.0,0.00013753,2]
[331654939,1720606251230,-500.0,0.00013753,2]
[331654940,1720606251241,-500.0,0.00013753,2]
[331654941,1720606251250,-534.03,0.00013753,2]
[331654942,1720606251260,-763.9,0.00013753,2]
[331654943,1720606251269,-1077.7,0.00013753,2]
[331654944,1720606251278,-500.0,0.00013753,2]
[331654945,1720606251288,-754.63,0.00013753,2]
[331654946,1720606251297,-500.0,0.00013753,2]
[331654947,1720606251307,-500.0,0.00013753,2]
[331654948,1720606251316,-500.0,0.00013753,2]
[331654949,1720606251326,-779.81,0.00013753,2]
[331654950,1720606251335,-500.0,0.00013753,2]
[331654951,1720606251345,-500.0,0.00013753,2]
[331654952,1720606251354,-500.0,0.00013753,2]
[331654953,1720606251364,-500.0,0.00013753,2]
[331654954,1720606251374,-1129.64,0.00013753,2]
[331654955,1720606251383,-500.0,0.00013753,2]
[331654956,1720606251392,-410.9737951,0.00013753,2]
[331654957,1720606251402,-500.0,0.00013753,2]
[331654958,1720606251412,-500.0,0.00013753,2]
[331654959,1720606251421,-500.0,0.00013753,2]
[331654960,1720606251430,-500.0,0.00013753,2]
[331654961,1720606251440,-500.0,0.00013753,2]
[331654962,1720606251450,-889.15,0.00013753,2]
[331654963,1720606251459,-855.03,0.00013753,2]
[331654964,1720606251469,-500.0,0.00013753,2]
[331654965,1720606251478,-500.0,0.00013753,2]
[331654966,1720606251488,-500.0,0.00013753,2]
[331654967,1720606251498,-500.0,0.00013753,2]
[331654968,1720606251507,-658.46,0.00013753,2]
[331654969,1720606251516,-1000.0,0.00013753,2]
[331654970,1720606251526,-500.0,0.00013753,2]
[331654971,1720606251535,-391.6378686,0.00013753,2]
[331654972,1720606251545,-500.0,0.00013753,2]
[331654973,1720606251554,-500.0,0.00013753,2]
[331654974,1720606251564,-500.0,0.00013753,2]
[331654975,1720606251573,-500.0,0.00013753,2]
[331654976,1720606251582,-500.0,0.00013753,2]
[331654977,1720606251592,-500.0,0.00013753,2]
[331654978,1720606251602,-571.22,0.00013753,2]
[331654979,1720606251612,-500.0,0.00013753,2]
[331654980,1720606251621,-622.46,0.00013753,2]
[331654981,1720606251631,-714.54,0.00013753,2]
[331654982,1720606251640,-500.0,0.00013753,2]
[331654983,1720606251650,-500.0,0.00013753,2]
[331654984,1720606251659,-575.53,0.00013753,2]
[331654985,1720606251669,-609.18,0.00013753,2]
[331654986,1720606251678,-500.0,0.00013753,2]
[331654987,1720606251687,-500.0,0.00013753,2]
[331654988,1720606251697,-500.0,0.00013753,2]
[331654989,1720606251706,-500.0,0.00013753,2]
[331654990,1720606251716,-500.0,0.00013753,2]
[331654991,1720606251726,-852.65,0.00013753,2]
[331654992,1720606251736,-625.42,0.00013753,2]
[331654993,1720606251746,-568.28,0.00013753,2]
[331654994,1720606251755,-500.0,0.00013753,2]
[331654995,1720606251765,-500.0,0.00013753,2]
[331654996,1720606251774,-766.17,0.00013753,2]
[331654997,1720606251784,-1174.96,0.00013753,2]
[331654998,1720606251793,-500.0,0.00013753,2]
[331654999,1720606251803,-1223.07,0.00013753,2]
[331655000,1720606251812,-500.0,0.00013753,2]
[331655001,1720606251821,-500.0,0.00013753,2]
[331655002,1720606251831,-500.0,0.00013753,2]
[331655003,1720606251840,-500.0,0.00013753,2]
[331655004,1720606251849,-500.0,0.00013753,2]
[331655005,1720606251859,-869.16,0.00013753,2]
[331655006,1720606251868,-516.37,0.00013753,2]
[331655007,1720606251877,-500.0,0.00013753,2]
[331655008,1720606251887,-500.0,0.00013753,2]
[331655009,1720606251896,-385.03,0.00013753,2]
[331655010,1720606251907,-500.0,0.00013753,2]
[331655011,1720606251917,-500.0,0.00013753,2]
[331655012,1720606251929,-500.0,0.00013753,2]
[331655013,1720606251939,-349.05307345,0.00013753,2]
[331655014,1720606251949,-500.0,0.00013753,2]
[331655015,1720606251959,-500.0,0.00013753,2]
[331655016,1720606251968,-500.0,0.00013753,2]
[331655017,1720606251977,-680.43,0.00013753,2]
[331655018,1720606251986,-500.0,0.00013753,2]
[331655019,1720606251997,-500.0,0.00013753,2]
[331655020,1720606252006,-429.81151302,0.00013753,2]
[331655021,1720606252015,-500.0,0.00013753,2]
[331655022,1720606252025,-500.0,0.00013753,2]
[331655023,1720606252034,-500.0,0.00013753,2]
[331655024,1720606252043,-1027.39,0.00013753,2]
[331655025,1720606252052,-500.0,0.00013753,2]
[331655026,1720606252062,-548.23,0.00013753,2]
[331655027,1720606252072,-500.0,0.00013753,2]
[331655028,1720606252081,-500.0,0.00013753,2]
[331655029,1720606252090,-679.8,0.00013753,2]
[331655030,1720606252100,-500.0,0.00013753,2]
[331655031,1720606252109,-500.0,0.00013753,2]
[331655032,1720606252118,-500.0,0.00013753,2]
[331655033,1720606252127,-500.0,0.00013753,2]
[331655034,1720606252136,-500.0,0.00013753,2]
[331655035,1720606252146,-500.0,0.00013753,2]
[331655036,1720606252155,-500.0,0.00013753,2]
[331655037,1720606252165,-500.0,0.00013753,2]
[331655038,1720606252174,-500.0,0.00013753,2]
[331655039,1720606252183,-500.0,0.00013753,2]
[331655040,1720606252192,-563.47,0.00013753,2]
[331655041,1720606252202,-500.0,0.00013753,2]
[331655042,1720606252212,-500.0,0.00013753,2]
[331655043,1720606252221,-500.0,0.00013753,2]
[331655044,1720606252231,-923.87,0.00013753,2]
[331655045,1720606252241,-500.0,0.00013753,2]
[331655046,1720606252251,-1525.3,0.00013753,2]
[331655047,1720606252260,-500.0,0.00013753,2]
[331655048,1720606252269,-500.0,0.00013753,2]
[331655049,1720606252278,-500.0,0.00013753,2]
[331655050,1720606252288,-688.98,0.00013753,2]
[331655051,1720606252298,-1157.72,0.00013753,2]
[331655052,1720606252307,-500.0,0.00013753,2]
[331655053,1720606252317,-500.0,0.00013753,2]
[331655054,1720606252326,-711.77,0.00013753,2]
[331655055,1720606252336,-573.29,0.00013753,2]
[331655056,1720606252346,-500.0,0.00013753,2]
[331655057,1720606252356,-500.0,0.00013753,2]
[331655058,1720606252368,-607.18,0.00013753,2]
[331655059,1720606252378,-500.0,0.00013753,2]
[331655060,1720606252387,-864.48,0.00013753,2]
[331655061,1720606252397,-791.78,0.00013753,2]
[331655062,1720606252407,-500.0,0.00013753,2]
[331655063,1720606252416,-500.0,0.00013753,2]
[331655064,1720606252426,-728.35,0.00013753,2]
[331655065,1720606252435,-500.0,0.00013753,2]
[331655066,1720606252456,-500.0,0.00013753,2]
[331655067,1720606252471,-500.0,0.00013753,2]
[331655068,1720606252481,-711.68,0.00013753,2]
[331655069,1720606252492,-500.0,0.00013753,2]
[331655070,1720606252502,-500.0,0.00013753,2]
[331655071,1720606252512,-500.0,0.00013753,2]
[331655072,1720606252523,-818.19,0.00013753,2]
[331655073,1720606252532,-750.34,0.00013753,2]
[331655074,1720606252544,-500.0,0.00013753,2]
[331655075,1720606252553,-500.0,0.00013753,2]
[331655076,1720606252563,-500.0,0.00013753,2]
[331655077,1720606252572,-689.71,0.00013753,2]
[331655078,1720606252582,-500.0,0.00013753,2]
[331655079,1720606252592,-500.0,0.00013753,2]
[331655080,1720606252601,-500.0,0.00013753,2]
[331655081,1720606252611,-500.0,0.00013753,2]
[331655082,1720606252621,-500.0,0.00013753,2]
[331655083,1720606252631,-500.0,0.00013753,2]
[331655084,1720606252640,-500.0,0.00013753,2]
[331655085,1720606252650,-500.0,0.00013753,2]
[331655086,1720606252660,-500.0,0.00013753,2]
[331655087,1720606252669,-1032.78,0.00013753,2]
[331655088,1720606252679,-500.0,0.00013753,2]
[331655089,1720606252688,-500.0,0.00013753,2]
[331655090,1720606252698,-500.0,0.00013753,2]
[331655091,1720606252707,-500.0,0.00013753,2]
[331655092,1720606252717,-750.83,0.00013753,2]